[Event "Indian Blitz Championship 2023"]
[Site "Nashik"]
[Date "2024.03.07"]
[Round "6.10"]
[White "Sengupta, Deep"]
[Black "Kaustuv, Kundu"]
[Result "0-1"]
[ECO "A38"]
[WhiteElo "2500"]
[BlackElo "2388"]
[Annotator "TA"]
[PlyCount "110"]
[EventDate "2024.03.07"]
[EventType "blitz"]
[EventCountry "IND"]
[SourceTitle "playchess.com"]
[Source "ChessBase"]
[SourceQuality "1"]
[TimeControl "180+2"]

{[%evp 20,110,-24,-47,-51,-44,-48,-85,-72,-90,-68,-64,-59,-87,-38,-88,-74,-92,-63,-136,-110,-136,-132,-139,-146,-141,-75,-127,-82,-133,-88,-299,-120,-130,-107,-100,-110,-102,-27,-39,-14,-25,-21,-49,-29,-589,-73,-104,-28,-106,-13,-239,0,-129,0,-241,0,-117,-15,-266,-262,-639,-658,-810,-828,-807,-451,-444,-422,-523,-571,-575,-582,-584,-584,-562,-557,-2416,-2160,-29972,-29972,-29977,-29978,-29978,-29979,-29981,-29978,-29978,-29977,-29978,-29979,-29979,-29978]} 1. Nf3 {[%emt 0:00:01]} c5 {[%emt 0:00:02]} 2. c4 {[%emt 0:00:01]} g6 {[%emt 0:00:02]} 3. Nc3 {[%emt 0:00:02]} Bg7 {[%emt 0:00:01]} 4. b3 {[%emt 0:00:05]} Nc6 {[%emt 0:00:09]} 5. Bb2 {[%emt 0:00:01]} Nf6 {[%emt 0:00:02]} 6. g3 {[%emt 0:00:02]} O-O {[%emt 0:00:06]} 7. Bg2 {[%emt 0:00:01]} e5 {[%emt 0:00:11]} 8. O-O {[%emt 0:00:09]} d6 {[%emt 0:00:01]} 9. Ne1 {[%emt 0:00:15]} Be6 {[%emt 0:00:15] A38: Symmetrical English vs ...g6: 4 Bg2 Bg7 5 Nf3 Nf6.} 10. Nc2 {[%emt 0:00:08]} d5 {[%emt 0:00:03]} 11. cxd5 {[%emt 0:00:13]} Nxd5 {[%emt 0:00:02]} 12. Ne3 {[%emt 0:00:29]} Nde7 {[%emt 0:00:12]} 13. Rc1 {[%emt 0:00:15]} Rc8 {[%emt 0:00:05]} 14. d3 {[%emt 0:00:11]} h6 {[%emt 0:00:04]} 15. Nc4 $146 {[%emt 0:00:22]} ({Predecessor:} 15. Qd2 b6 16. Nc4 Qd7 17. Rfe1 f5 18. e3 Rfd8 19. Red1 Nb4 20. Bf1 Kh7 21. a3 {1-0 Patuzzo,F (2290)-Fecker,N (2392) SUI-ch Rapid 2023 (7)}) 15... b6 {[%emt 0:00:05]} 16. Ne4 {[%emt 0:00:05]} Qd7 {[%emt 0:00:09]} (16... f5 $17 17. Ned6 Rb8) 17. Qd2 {[%emt 0:00:06]} (17. f4 $15) 17... Rcd8 {[%emt 0:00:14]} 18. Rfd1 {[%emt 0:00:01]} Kh7 {[%emt 0:00:08]} 19. f4 {[%emt 0:00:17]} (19. Qe1 $15) 19... f5 $17 {[%emt 0:00:12]} 20. Nf2 {[%emt 0:00:16]} exf4 {[%emt 0:00:06]} 21. gxf4 {[%emt 0:00:02]} Bxb2 {[%emt 0:00:11]} 22. Qxb2 {[%emt 0:00:01]} Nd5 {[%emt 0:00:10]} (22... Bd5 $142 $1 {...Bxg2 is the strong threat.} 23. e4 Be6) 23. Nh3 {[%emt 0:00:22]} (23. e3 $142) 23... Nf6 {[%emt 0:00:05]} 24. Re1 {[%emt 0:00:07]} (24. Bxc6 $142 Qxc6 25. Ne5) 24... Ng4 {[%emt 0:00:19]} 25. Rcd1 $2 {[%emt 0:00:10]} (25. Nf2 $17) 25... Bd5 {[%emt 0:00:06]} (25... Bxc4 $19 26. bxc4 Ne3) 26. e4 $17 {[%emt 0:00:04]} Bxc4 {[%emt 0:00:01]} 27. bxc4 {[%emt 0:00:01]} fxe4 {[%emt 0:00:05]} (27... Qd4+ {simplifies} 28. Qxd4 Nxd4 29. Rd2 Kg7) 28. Bxe4 {[%emt 0:00:02]} Nd4 {[%emt 0:00:04]} ({Better is} 28... Qd4+ $17 29. Qxd4 Nxd4) 29. Qg2 $11 {[%emt 0:00:01]} h5 {[%emt 0:00:32]} 30. Kh1 {[%emt 0:00:04]} Kg7 {[%emt 0:00:07]} 31. Rd2 {[%emt 0:00:02]} Rf6 {[%emt 0:00:02]} 32. Rf1 $2 {[%emt 0:00:02][%mdl 8192]} (32. Qg3 $11) 32... Rdf8 $2 {[%emt 0:00:01]} (32... Ne3 $19 33. Qg1 Qxh3) 33. Qg3 {[%emt 0:00:02]} Qd6 {[%emt 0:00:05]} (33... Ne6 $1 $17 {Hoping for ...Qd6.} 34. Rg2 Qd6) 34. Rg2 {[%emt 0:00:06]} (34. Re1 $11) 34... R8f7 {[%emt 0:00:03]} ({Black should try} 34... Ne6 $1 $17 {[%cal Re6f4]} 35. Rfg1 Nxf4 36. Nxf4 Qxf4 37. Qxf4 Rxf4) 35. Ng5 $2 {[%emt 0:00:01]} (35. Re1 $11 {and White stays safe.}) 35... Rf8 $2 {[%emt 0:00:00]} (35... Rxf4 $19 36. Rfg1 Rf8) 36. Nh3 {[%emt 0:00:07] [#]} (36. h3 $11 {keeps the balance.} Nh6 37. Bd5) 36... R8f7 {[%emt 0:00:03]} (36... Ne6 $1 $17 {[%cal Re6f4]} 37. Rfg1 Nxf4 38. Nxf4 Qxf4 39. Qxf4 Rxf4) 37. Ng5 $19 {[%emt 0:00:00]} Rf8 {[%emt 0:00:01]} (37... Rxf4 $19 38. Rfg1 Rf8) 38. Nh3 $17 {[%emt 0:00:00] [#]} Nf5 {[%emt 0:00:02]} (38... Ne6 $1 $17 {[%cal Re6f4]} 39. Rfg1 Nxf4 40. Nxf4 Qxf4 41. Qxf4 Rxf4) 39. Qf3 $2 {[%emt 0:00:00][%mdl 8192]} (39. Bxf5 $11 Rxf5 40. Re2) 39... Nfe3 $19 {[%emt 0:00:01]} 40. Rfg1 $2 {[%emt 0:00:03]} (40. Rxg4 hxg4 (40... Nxg4 $2 41. a3 $19) 41. Qxe3 gxh3 42. f5) 40... Nxg2 $19 {[%emt 0:00:01]} 41. Rxg2 {[%emt 0:00:02]} Rxf4 {[%emt 0:00:02]} 42. Nxf4 {[%emt 0:00:01]} Qxf4 {[%emt 0:00:02]} 43. Qxf4 {[%emt 0:00:02]} Rxf4 {[%emt 0:00:01]} 44. Kg1 {[%emt 0:00:02]} Ne3 {[%emt 0:00:02]} 45. Rf2 {[%emt 0:00:02]} Rxf2 {[%emt 0:00:02]} ({Weaker is} 45... Rg4+ 46. Kh1 $17) 46. Kxf2 {[%emt 0:00:01]} Nd1+ {[%emt 0:00:02]} 47. Kf3 {[%emt 0:00:03]} Nc3 {[%emt 0:00:01]} 48. a3 {[%emt 0:00:02]} Nxe4 {[%emt 0:00:03]} 49. dxe4 {[%emt 0:00:01]} Kf6 {[%emt 0:00:01]} 50. h4 {[%emt 0:00:02]} g5 {[%emt 0:00:02]} 51. hxg5+ {[%emt 0:00:05]} Kxg5 {[%emt 0:00:02]} 52. Kg3 {[%emt 0:00:01]} Kf6 {[%emt 0:00:02]} 53. Kf4 {[%emt 0:00:01]} Ke6 {[%emt 0:00:01]} 54. a4 {[%emt 0:00:01]} h4 {[%emt 0:00:01]} 55. Kg4 {[%emt 0:00:01]} Ke5 {[%emt 0:00:01]} 0-1

[Event "Indian Blitz Championship 2023"]
[Site "Nashik"]
[Date "2024.03.07"]
[Round "7.1"]
[White "Raja Rithvik R"]
[Black "Hari Madhavan N B"]
[Result "1/2-1/2"]
[ECO "D13"]
[WhiteElo "2532"]
[BlackElo "2395"]
[Annotator "TA"]
[PlyCount "179"]
[EventDate "2024.03.07"]
[EventType "blitz"]
[EventCountry "IND"]
[SourceTitle "playchess.com"]
[Source "ChessBase"]
[SourceQuality "1"]
[TimeControl "180+2"]

{[%evp 22,179,32,34,48,35,72,19,22,24,48,15,21,18,88,97,105,44,150,0,12,30,3,-197,-189,-309,-275,-272,-162,-160,-150,-152,0,-222,-100,-101,-84,-127,-132,-331,-331,-1332,-1308,-5397,-5345,-5322,0,0,0,0,0,0,0,0,0,0,0,0,0,0,0,0,0,0,0,0,0,0,0,0,0,0,145,145,145,145,144,0,144,137,29970,241,29975,29976,29974,29975,29977,29978,29979,29980,29979,29970,29967,29971,29974,29975,29973,29965,29969,0,0,0,5057,0,0,0,0,0,0,0,0,0,0,0,0,0,0,0,0,0,0,0,0,0,0,0,0,0,0,0,0,0,0,0,0,0,0,0,0,0,0,0,0,0,0,0,0,0,0,0,0,0,0,0,0,0,0,0,0,0]} 1. d4 {[%emt 0:00:01]} d5 {[%emt 0:00:04]} 2. c4 {[%emt 0:00:01]} c6 {[%emt 0:00:01]} 3. cxd5 {[%emt 0:00:06]} cxd5 {[%emt 0:00:02]} 4. Nc3 {[%emt 0:00:01]} Nc6 {[%emt 0:00:01]} 5. Nf3 {[%emt 0:00:01]} Nf6 {[%emt 0:00:01]} 6. Bf4 {[%emt 0:00:01]} a6 {[%emt 0:00:01]} 7. Rc1 {[%emt 0:00:01]} e6 {[%emt 0:00:01]} 8. e3 {[%emt 0:00:01]} Be7 {[%emt 0:00:01]} 9. h3 {[%emt 0:00:15]} O-O {[%emt 0:00:02]} 10. Bd3 {[%emt 0:00:01]} Bd7 {[%emt 0:00:10]} 11. O-O {[%emt 0:00:04]} Rc8 {[%emt 0:00:01]} 12. a3 {[%emt 0:00:26]} h6 {[%emt 0:00:10]} 13. b4 {[%emt 0:00:07]} Ne8 {[%emt 0:00:03]} 14. Ne5 {[%emt 0:00:34] Weiß steht deutlich aktiver.} (14. e4 $16) 14... Nxe5 $11 {[%emt 0:00:08]} 15. dxe5 {[%emt 0:00:01]} Bg5 {[%emt 0:00:21]} 16. Bb1 {[%emt 0:00:11]} Bxf4 {[%emt 0:00:09]} 17. exf4 {[%emt 0:00:01][%cal Of4f5]} Rc4 {[%emt 0:00:03] [#]} (17... Nc7 $11) 18. f5 $1 $16 {[%emt 0:00:06]} exf5 {[%emt 0:00:16]} 19. Nxd5 {[%emt 0:00:17]} ({Günstiger ist} 19. Ba2 $1 $16 {[%cal Ra2c4]} Nc7 20. Bxc4 (20. Nxd5 Rxc1 21. Qxc1 Be6 $11) 20... dxc4 21. Qf3) 19... Bb5 {[%emt 0:00:38]} (19... Rxc1 $1 $14 20. Qxc1 Bc6) 20. Ne3 {[%emt 0:00:12]} (20. Bxf5 $2 Rxc1 21. Qxc1 Qxd5 $19 (21... Bxf1 $2 22. Qc5 $19)) ({Vorzuziehen ist} 20. Rxc4 $16 Bxc4 21. Ne3) 20... Rd4 $11 {[%emt 0:00:03]} 21. Qf3 {[%emt 0:00:07]} Bxf1 {[%emt 0:00:02]} 22. Kxf1 {[%emt 0:00:17]} (22. Rxf1 $11 f4 (22... g6 23. Nxf5 Rd2 24. Nxh6+ Kg7 25. Ng4 $16) 23. Nf5) 22... g6 $19 {[%emt 0:00:03]} 23. g4 {[%emt 0:00:11]} (23. Kg1 $142) 23... f4 {[%emt 0:00:05]} 24. Ng2 {[%emt 0:00:02]} Qe7 {[%emt 0:00:18]} (24... Nc7 $142 {Und jetzt ...Ne6 wäre schön.} 25. Nxf4 Ne6) 25. Re1 {[%emt 0:00:08]} Ng7 {[%emt 0:00:10]} 26. Nxf4 {[%emt 0:00:04]} Rfd8 {[%emt 0:00:01] Pariert Nd5.} (26... Ne6 $17 27. Nd5 Qg5) 27. Kg2 $2 {[%emt 0:00:07]} (27. Ba2 $1 $11 {und Weiss muss sich keine Sorgen machen.} Qg5 28. Nd5) 27... Ne6 {[%emt 0:00:05]} (27... Qg5 $19 {ist viel giftiger.} 28. Be4 Qxe5) 28. Nxe6 $17 {[%emt 0:00:02]} Qxe6 {[%emt 0:00:02]} 29. Qxb7 {[%emt 0:00:01]} Rf4 {[%emt 0:00:21] Verhindert Qf3} 30. Re2 {[%emt 0:00:26] Lässt Rd2 nicht zu} (30. Re4 $17 Rd4 31. Rxf4 Rxf4 32. Bd3) 30... Rxg4+ $19 {[%emt 0:00:14]} 31. hxg4 $2 {[%emt 0:00:00]} (31. Kh2 Rf4 32. Kg3) 31... Qxg4+ {[%emt 0:00:01]} 32. Kf1 {[%emt 0:00:01]} Rd1+ {[%emt 0:00:08]} 33. Re1 {[%emt 0:00:02]} Qh3+ $2 {[%emt 0:00:01]} (33... Qc4+ $19 34. Kg2 Rxe1) 34. Ke2 $11 {[%emt 0:00:01]} Qg4+ {[%emt 0:00:07]} 35. f3 {[%emt 0:00:04]} Rxe1+ {[%emt 0:00:01]} 36. Kxe1 {[%emt 0:00:01]} Qg1+ {[%emt 0:00:01]} 37. Ke2 {[%emt 0:00:02]} Qxb1 {[%emt 0:00:02]} 38. Qxa6 {[%emt 0:00:04][%mdl 4096] Endspiel. KQ-KQ} Qb2+ {[%emt 0:00:01]} 39. Kd3 {[%emt 0:00:06]} Qxe5 {[%emt 0:00:01]} 40. Qc8+ {[%emt 0:00:01]} Kh7 {[%emt 0:00:02]} 41. Qd7 {[%emt 0:00:04]} Qf4 {[%emt 0:00:02]} 42. b5 {[%emt 0:00:02]} Qxf3+ {[%emt 0:00:02]} 43. Kc4 {[%emt 0:00:00]} Qe4+ {[%emt 0:00:15]} 44. Kc5 {[%emt 0:00:01]} Qe3+ {[%emt 0:00:01]} 45. Kc6 {[%emt 0:00:02]} Qc3+ {[%emt 0:00:02]} 46. Kb7 {[%emt 0:00:05]} Qf3+ {[%emt 0:00:01]} (46... h5 $1 $11) 47. Qc6 $1 $16 {[%emt 0:00:01]} Qxa3 {[%emt 0:00:02]} 48. b6 {[%emt 0:00:01]} h5 {[%emt 0:00:02]} 49. Qd7 {[%emt 0:00:02]} (49. Kc8 $1 $16 {b7 wäre nun fies.} Qh3+ 50. Qd7 Qc3+ 51. Qc7 Qh3+ 52. Kb8) 49... Qf3+ {[%emt 0:00:01] [#]} (49... h4 $11 {hält das Gleichgewicht.} 50. Qxf7+ Kh6) 50. Kc8 $1 {[%emt 0:00:02] jetzt b7 und aus.} Qa8+ {[%emt 0:00:02]} (50... Qc3+ 51. Qc7 Qh3+ 52. Kb8 $14) (50... Kg7 $16 {war einen Versuch wert.}) 51. Kc7 $18 {[%emt 0:00:01]} h4 $2 {[%emt 0:00:05]} (51... Qa5 $18 52. Qxf7+ Kh6) 52. Qxf7+ {[%emt 0:00:03]} Kh6 {[%emt 0:00:01] [#]} 53. Qf4+ $1 {[%emt 0:00:01]} Kh5 {[%emt 0:00:04]} 54. Qe5+ {[%emt 0:00:01]} g5 {[%emt 0:00:03]} 55. b7 {[%emt 0:00:01]} Qa7 {[%emt 0:00:02]} 56. Kc8 {[%emt 0:00:01]} Qa6 {[%emt 0:00:01]} 57. Qe8+ {[%emt 0:00:06]} Kg4 {[%emt 0:00:01]} 58. Qd7+ {[%emt 0:00:00]} Kh5 {[%emt 0:00:02]} 59. Kd8 {[%emt 0:00:06]} Qb6+ {[%emt 0:00:01]} 60. Qc7 $2 {[%emt 0:00:01]} (60. Ke7 {setzt Matt} Qb4+ 61. Kf7 Qb6 62. Qd1+ Kh6 63. Qd5 Qf2+ 64. Kg8 Qh2 65. Qc6+ Kh5 66. Qe8+ Kg4 67. b8=Q (67. b8=B Qc2 $11)) 60... Qf6+ $11 {[%emt 0:00:01]} 61. Kd7 {[%emt 0:00:02]} Qf5+ $2 {[%emt 0:00:01][%mdl 8192]} (61... Qg7+ $11 62. Kc6 Qc3+ 63. Kd6 Qf6+ 64. Kd7 Qg7+ 65. Kd6 Qf6+ 66. Kd5 Qf5+ 67. Kc6 Qf3+ 68. Kc5 Qc3+ 69. Kb6 Qb3+ 70. Kc6 Qc4+ 71. Kb6 Qb3+ 72. Kc6 Qc3+ 73. Kd7 Qg7+) 62. Kc6 $2 {[%emt 0:00:02]} (62. Ke7 $18 Qh7+ 63. Kd6 Qd3+ 64. Ke6 Qe4+ 65. Kf6 Qg6+ 66. Ke5 Qe8+ 67. Kd5 Qb5+ 68. Ke6 Qe8+ 69. Qe7 Qg6+ 70. Kd7 Qf5+ 71. Ke8 Qb5+ 72. Kf8) 62... Qe4+ {[%emt 0:00:02] Die Stellung ist ausgeglichen.} 63. Kb6 {[%emt 0:00:01]} Qb4+ {[%emt 0:00:02]} 64. Ka6 {[%emt 0:00:02]} Qa4+ {[%emt 0:00:01]} 65. Qa5 {[%emt 0:00:01]} Qc6+ {[%emt 0:00:01]} 66. Ka7 {[%emt 0:00:01]} Qd7 {[%emt 0:00:02]} 67. Qc5 {[%emt 0:00:06]} (67. Qa2 $5) 67... h3 {[%emt 0:00:04] Und ...h2 würde nun gewinnen.} 68. Kb6 {[%emt 0:00:03]} Qd8+ {[%emt 0:00:03]} 69. Qc7 {[%emt 0:00:02]} Qd4+ {[%emt 0:00:02]} 70. Qc5 {[%emt 0:00:01]} Qb2+ {[%emt 0:00:02]} 71. Qb5 {[%emt 0:00:03]} Qd4+ {[%emt 0:00:04]} 72. Qc5 {[%emt 0:00:03]} Qd8+ {[%emt 0:00:02]} 73. Qc7 {[%emt 0:00:01]} Qd4+ {[%emt 0:00:00]} 74. Qc5 {[%emt 0:00:01]} Qb2+ {[%emt 0:00:04]} 75. Qb5 {[%emt 0:00:02]} Qd4+ {[%emt 0:00:05]} 76. Ka6 {[%emt 0:00:02]} Qa1+ {[%emt 0:00:02]} 77. Kb6 {[%emt 0:00:02]} Qd4+ {[%emt 0:00:01]} 78. Ka6 {[%emt 0:00:02]} Qa1+ {[%emt 0:00:01]} 79. Qa5 {[%emt 0:00:01]} Qf1+ {[%emt 0:00:02]} 80. Ka7 {[%emt 0:00:01]} Qf2+ {[%emt 0:00:02]} 81. Ka8 {[%emt 0:00:02]} Qf3 {[%emt 0:00:02]} 82. Ka7 {[%emt 0:00:03]} h2 {[%emt 0:00:01] ( -> ...Qf2+)} 83. b8=Q {[%emt 0:00:08] Schach mit Chili.} h1=Q {[%emt 0:00:02] Droht stark ...Qg1+.} (83... h1=B 84. Qh2+ Kg6 85. Qb6+ Qc6 86. Qxh1 Qxb6+ 87. Kxb6 Kf5 88. Qf3+ Ke5 89. Kc5) 84. Qe8+ {[%emt 0:00:00]} Kh4 $1 {[%emt 0:00:03][%csl Gh1][%cal Rf3b7]} 85. Qh8+ {[%emt 0:00:00]} Kg4 {[%emt 0:00:02][%csl Gh1][%cal Rf3b7]} 86. Qc8+ $1 {[%emt 0:00:01]} Kh4 {[%emt 0:00:03]} 87. Qh8+ {[%emt 0:00:03]} Kg4 {[%emt 0:00:01][%csl Gh1][%cal Rf3b7]} 88. Qc8+ {[%emt 0:00:01]} Kh4 {[%emt 0:00:01] Weiss muss nun ...Qf7+ beachten.} 89. Qh8+ {[%emt 0:00:04]} Kg4 {[%emt 0:00:05][%csl Gh1][%cal Rf3b7]} 90. Qc8+ {[%emt 0:00:01] Weiß hat die Chance genutzt.   Gewichteter Fehlerwert: Weiß=0.67/Schwarz=0.53.  Verlustzug:     	Weiß=3     	Schwarz=1     Gewinn verpasst:   	Weiß=1     	---        Fehler:       	Weiß=6     	Schwarz=9     Ungenau:       	Weiß=4     	Schwarz=1     OK:         	Weiß=26    	Schwarz=27    Bester:       	Weiß=4     	Schwarz=7     Stark:        	Weiß=3     	Schwarz=1} 1/2-1/2

[Event "Indian Blitz Championship 2023"]
[Site "Nashik"]
[Date "2024.03.07"]
[Round "7.2"]
[White "Aakash Sharadchandra, Dalvi"]
[Black "Mohammad Nubairshah Shaikh"]
[Result "1/2-1/2"]
[ECO "A42"]
[WhiteElo "2291"]
[BlackElo "2436"]
[Annotator "TA"]
[PlyCount "146"]
[EventDate "2024.03.07"]
[EventType "blitz"]
[EventCountry "IND"]
[SourceTitle "playchess.com"]
[Source "ChessBase"]
[SourceQuality "1"]
[TimeControl "180+2"]

{[%evp 35,146,49,133,61,66,29,25,22,39,19,47,15,17,25,16,23,107,62,97,104,118,0,0,-13,-22,-71,-84,-93,-85,-88,-104,-85,-89,-131,-10,-12,-12,-12,-12,-12,0,0,0,0,35,32,33,0,29970,29971,29970,0,0,0,29970,29971,5691,2,2,3,3,3,10,10,16,16,16,16,16,0,3,3,3,3,3,3,10,3,10,10,17,0,17,0,17,0,0,0,0,0,0,0,0,0,0,0,0,0,0,0,0,0,0,0,0,0,0,0,0,0,0,0,0]} 1. d4 {[%emt 0:00:01]} g6 {[%emt 0:00:01]} 2. c4 {[%emt 0:00:01]} Bg7 {[%emt 0:00:00]} 3. e4 {[%emt 0:00:01]} d6 {[%emt 0:00:01]} 4. Nc3 {[%emt 0:00:02]} e5 {[%emt 0:00:01]} 5. d5 {[%emt 0:00:03]} a5 {[%emt 0:00:02]} 6. Nf3 {[%emt 0:00:05] A42: Moderne Verteidigung (mit c2-c4/ohne Sf6).} Na6 {[%emt 0:00:01]} 7. Bd3 {[%emt 0:00:23]} Nc5 {[%emt 0:00:03]} 8. Bc2 {[%emt 0:00:01]} h5 $146 {[%emt 0:00:01]} ({Predecessor:} 8... Bd7 9. O-O h5 10. Bg5 f6 11. Be3 Bh6 12. Bxc5 dxc5 13. d6 c6 14. Ne1 b6 {1-0 Magold,F (2388)-Domingo Nunez,R (2416) Titled Tuesday intern op 23rd May Early blitz 2023 (4)}) 9. Rb1 {[%emt 0:00:16]} Bh6 {[%emt 0:00:07]} 10. b3 {[%emt 0:00:11]} Bg4 {[%emt 0:00:17]} 11. h3 {[%emt 0:00:05]} Bxf3 {[%emt 0:00:56]} 12. Qxf3 {[%emt 0:00:01]} Bxc1 {[%emt 0:00:02]} 13. Rxc1 {[%emt 0:00:00]} Qf6 {[%emt 0:00:03]} 14. Qe3 {[%emt 0:00:11]} h4 {[%emt 0:00:04]} 15. a3 {[%emt 0:00:03]} Kf8 {[%emt 0:00:41]} 16. O-O {[%emt 0:00:04]} Kg7 {[%emt 0:00:03]} 17. b4 {[%emt 0:00:03]} Na6 {[%emt 0:00:02]} 18. Rb1 {[%emt 0:00:03]} Ne7 {[%emt 0:00:03]} (18... Qf4 $14) 19. c5 {[%emt 0:00:03]} ({Vorzuziehen ist} 19. f4 $16) 19... Qf4 {[%emt 0:00:23]} 20. Na4 {[%emt 0:00:17]} (20. bxa5 Qxe3 (20... dxc5 $2 21. Qxf4 exf4 22. Rxb7 $18) (20... Nxc5 21. Qe1 $15) 21. fxe3 Nxc5 $11 (21... dxc5 22. d6 $16)) 20... Qxe3 {[%emt 0:00:08]} 21. fxe3 {[%emt 0:00:01]} axb4 {[%emt 0:00:01]} 22. axb4 {[%emt 0:00:01]} Rhf8 {[%emt 0:00:26]} 23. cxd6 {[%emt 0:00:03]} cxd6 {[%emt 0:00:00]} 24. Nb6 {[%emt 0:00:01]} Rad8 {[%emt 0:00:03]} 25. Bd3 {[%emt 0:00:01]} Nb8 {[%emt 0:00:02]} (25... f5 $11 {hält das Gleichgewicht.}) 26. Ra1 {[%emt 0:00:08]} Nd7 {[%emt 0:00:01]} 27. Nc4 {[%emt 0:00:01]} Nf6 {[%emt 0:00:05] [#]} 28. Ra7 {[%emt 0:00:01]} (28. Rfc1 $1 $16) 28... Rd7 $11 {[%emt 0:00:03]} 29. Na5 {[%emt 0:00:18]} Rb8 $1 {[%emt 0:00:02]} (29... b6 $6 30. Rxd7 Nxd7 31. Nc4 $16) 30. Rc1 {[%emt 0:00:04]} (30. Nc4 $11 {verdient Beachtung.}) 30... Nc8 $17 {[%emt 0:00:06]} 31. Rxb7 {[%emt 0:00:32]} Rdxb7 {[%emt 0:00:01]} 32. Nxb7 {[%emt 0:00:01]} Rxb7 {[%emt 0:00:00]} 33. Rxc8 {[%emt 0:00:01]} Rxb4 {[%emt 0:00:01]} 34. Rc6 {[%emt 0:00:07]} Nxe4 {[%emt 0:00:01]} (34... Rb3 $17 35. Bc2 Rxe3) 35. Bxe4 $11 {[%emt 0:00:01]} Rxe4 {[%emt 0:00:01]} 36. Kf2 {[%emt 0:00:01]} Ra4 {[%emt 0:00:07]} 37. Rxd6 {[%emt 0:00:01]} f5 {[%emt 0:00:01]} 38. Kf3 {[%emt 0:00:21]} Ra2 {[%emt 0:00:07]} 39. Re6 {[%emt 0:00:10]} e4+ {[%emt 0:00:01]} 40. Kf4 {[%emt 0:00:01]} Rxg2 {[%emt 0:00:01]} 41. d6 {[%emt 0:00:05]} Kf7 $2 {[%emt 0:00:04][%mdl 8192]} (41... Rd2 $11) 42. Ke5 {[%emt 0:00:03]} Rd2 {[%emt 0:00:05]} 43. Rf6+ {[%emt 0:00:01]} Kg7 {[%emt 0:00:02]} 44. Re6 {[%emt 0:00:01]} Kf7 $1 {[%emt 0:00:00]} 45. Re7+ {[%emt 0:00:01]} Kf8 {[%emt 0:00:01]} 46. Rh7 $2 {[%emt 0:00:04]} (46. Ke6 $18 {Weiss droht d7 und Matt.} Ra2 47. Rf7+ Kg8 48. Rc7) 46... f4 $11 {[%emt 0:00:02]} 47. Kxf4 {[%emt 0:00:15]} (47. exf4 $2 {verliert.} e3 48. Kf6 Rxd6+ 49. Ke5 e2 50. Kxd6 e1=Q $19 (50... e1=B $2 {zu gefräßig.} 51. Ke6 $18)) (47. Rh8+ {sieht schärfer aus.} Kg7 48. Rxh4 f3 49. Kxe4 f2 50. Rf4) 47... Rxd6 {[%emt 0:00:01]} 48. Rxh4 {[%emt 0:00:05]} Kg7 {[%emt 0:00:03]} 49. Kxe4 {[%emt 0:00:02]} Ra6 {[%emt 0:00:01]} 50. Kf3 {[%emt 0:00:01]} Ra1 {[%emt 0:00:03]} 51. Rb4 {[%emt 0:00:01]} Kf6 {[%emt 0:00:01]} 52. h4 {[%emt 0:00:02]} Rf1+ {[%emt 0:00:01]} 53. Kg3 {[%emt 0:00:01]} Ke5 {[%emt 0:00:02]} 54. Rg4 {[%emt 0:00:05]} Rg1+ {[%emt 0:00:08]} 55. Kf3 {[%emt 0:00:01]} Rf1+ {[%emt 0:00:02]} 56. Kg2 {[%emt 0:00:05]} Re1 {[%emt 0:00:02]} 57. Kf2 {[%emt 0:00:01]} Rh1 {[%emt 0:00:00]} 58. Kg2 {[%emt 0:00:04]} ({Viel schwächer ist} 58. Rxg6 Rxh4 59. Ra6 Rh2+ 60. Kf3 Kf5 $14) 58... Re1 {[%emt 0:00:01]} 59. Kf2 {[%emt 0:00:07]} Rh1 {[%emt 0:00:00]} 60. e4 {[%emt 0:00:02]} Ra1 {[%emt 0:00:14]} 61. Rxg6 {[%emt 0:00:03]} Kxe4 {[%emt 0:00:00]} 62. Rf6 {[%emt 0:00:01]} Ke5 {[%emt 0:00:00]} 63. Rf8 {[%emt 0:00:01]} Rh1 {[%emt 0:00:00]} 64. Kg3 {[%emt 0:00:01]} Ke6 {[%emt 0:00:00]} 65. Kg4 {[%emt 0:00:03]} Ke7 {[%emt 0:00:00]} 66. Rf3 {[%emt 0:00:01]} Rg1+ $1 {[%emt 0:00:00]} 67. Kh5 {[%emt 0:00:01]} Rg7 {[%emt 0:00:02]} 68. Kh6 {[%emt 0:00:01]} Rf7 $1 {[%emt 0:00:01]} 69. Re3+ {[%emt 0:00:05]} Kf8 {[%emt 0:00:01]} 70. h5 {[%emt 0:00:01]} Rf6+ {[%emt 0:00:03]} 71. Kg5 {[%emt 0:00:01]} Ra6 {[%emt 0:00:00]} 72. Re5 {[%emt 0:00:03]} Kg7 {[%emt 0:00:01]} 73. Rb5 {[%emt 0:00:01]} Ra7 {[%emt 0:00:01]} 1/2-1/2